fUSD/lending_fUSD_20240331
["ID","MTS","AMOUNT","RATE_DAILY","PERIOD"]
[321120721,1711900383281,-500.0,0.00058904,120]
[321120722,1711900383293,-500.0,0.00058904,120]
[321120723,1711900383306,-151.0,0.00058904,120]
[321120724,1711900383317,-592.16,0.00058904,120]
[321120725,1711900383327,-500.0,0.00058904,120]
[321120726,1711900383337,-500.0,0.00058904,120]
[321120727,1711900383347,-571.87,0.00058904,120]
[321120728,1711900383359,-500.0,0.00058904,16]
[321120729,1711900383370,-781.99,0.00058904,120]
[321120730,1711900383382,-828.46,0.00058904,120]
[321120731,1711900383393,-500.0,0.00058904,120]
[321120732,1711900383405,-500.0,0.00058904,120]
[321120733,1711900383416,-165.01,0.00058904,120]
[321120734,1711900383427,-500.0,0.00058904,120]
[321120735,1711900383438,-519.19,0.00058904,120]
[321120736,1711900383448,-680.37,0.00058904,120]
[321120737,1711900383460,-500.0,0.00058904,120]
[321120738,1711900383472,-735.71,0.00058904,120]
[321120739,1711900383481,-500.0,0.00058904,120]
[321120740,1711900383490,-648.33,0.00058904,120]
[321120741,1711900383498,-500.0,0.00058904,120]
[321120742,1711900383507,-680.7,0.00058904,120]
[321120743,1711900383515,-1067.63,0.00058904,120]
[321120744,1711900383523,-617.46,0.00058904,120]
[321120745,1711900383531,-500.0,0.00058904,120]
[321120746,1711900383538,-500.0,0.00058904,120]
[321120747,1711900383544,-615.17,0.00058904,120]
[321120748,1711900383551,-753.46,0.00058904,120]
[321120749,1711900383558,-671.0,0.00058904,120]
[321120750,1711900383564,-742.98,0.00058904,120]
[321120751,1711900383573,-579.39,0.00058904,120]
[321120752,1711900383583,-500.0,0.00058904,120]
[321120753,1711900383592,-759.51,0.00058904,120]
[321120754,1711900383603,-500.0,0.00058904,120]
[321120755,1711900383613,-500.0,0.00058904,120]
[321120756,1711900383623,-730.83,0.00058904,30]
[321120757,1711900383632,-562.36,0.00058904,120]
[321120758,1711900383643,-540.79,0.00058904,120]
[321120759,1711900383653,-591.57,0.00058904,120]
[321120760,1711900383662,-754.29,0.00058904,120]
[321120761,1711900383672,-544.56,0.00058904,120]
[321120762,1711900383681,-500.0,0.00058904,120]
[321120763,1711900383690,-563.24,0.00058904,120]
[321120764,1711900383699,-500.0,0.00058904,120]
[321120765,1711900383709,-151.0,0.00058904,120]
[321120766,1711900383719,-301.513998,0.00058904,120]
[321120767,1711900383730,-500.0,0.00058904,120]
[321120768,1711900383739,-505.9,0.00058904,120]
[321120769,1711900383748,-500.0,0.00058904,120]
[321120770,1711900383758,-662.41,0.00058904,120]
[321120771,1711900383769,-995.44,0.00058904,120]
[321120772,1711900383779,-500.0,0.00058904,120]
[321120773,1711900383789,-500.0,0.00058904,120]
[321120774,1711900383799,-500.0,0.00058904,120]
[321120775,1711900383810,-225.13769,0.00058904,120]
[321120776,1711900383820,-629.64,0.00058904,120]
[321120777,1711900383830,-500.0,0.00058904,120]
[321120778,1711900383840,-531.25,0.00058904,120]
[321120779,1711900383852,-543.59,0.00058904,120]
[321120780,1711900383862,-500.0,0.00058904,120]
[321120781,1711900383872,-761.88,0.00058904,120]
[321120782,1711900383882,-711.25,0.00058904,120]
[321120783,1711900383893,-306.328758,0.00058904,120]
[321120784,1711900383902,-306.328758,0.00058904,120]
[321120785,1711900383912,-306.328758,0.00058904,120]
[321120786,1711900383922,-646.54,0.00058904,120]
[321120787,1711900383931,-1048.22,0.00058904,120]
[321120788,1711900383941,-306.328758,0.00058904,120]
[321120789,1711900383950,-306.328758,0.00058904,120]
[321120790,1711900383959,-306.328767,0.00058904,120]
[321120791,1711900383969,-500.0,0.00058904,120]
[321120792,1711900383979,-844.59,0.00058904,120]
[321120793,1711900383989,-519.79,0.00058904,120]
[321120794,1711900384000,-729.88,0.00058904,120]
[321120795,1711900384010,-539.07,0.00058904,120]
[321120796,1711900384021,-915.41,0.00058904,120]
[321120797,1711900384030,-771.12,0.00058904,120]
[321120798,1711900384040,-500.0,0.00058904,120]
[321120799,1711900384050,-544.62,0.00058904,120]
[321120800,1711900384060,-618.81,0.00058904,120]
[321120801,1711900384071,-560.35,0.00058904,120]
[321120802,1711900384081,-500.0,0.00058904,120]
[321120803,1711900384090,-500.0,0.00058904,120]
[321120804,1711900384100,-500.0,0.00058904,120]
[321120805,1711900384110,-860.0,0.00058904,120]
[321120806,1711900384120,-881.22,0.00058904,120]
[321120807,1711900384130,-500.0,0.00058904,120]
[321120808,1711900384139,-500.0,0.00058904,120]
[321120809,1711900384149,-644.32,0.00058904,120]
[321120810,1711900384158,-500.0,0.00058904,120]
[321120811,1711900384168,-500.0,0.00058904,120]
[321120812,1711900384178,-500.0,0.00058904,120]
[321120813,1711900384188,-1276.69,0.00058904,120]
[321120814,1711900384198,-500.0,0.00058904,120]
[321120815,1711900384207,-500.0,0.00058904,120]
[321120816,1711900384217,-500.0,0.00058904,120]
[321120817,1711900384227,-259.83,0.00058904,120]
[321120818,1711900384237,-554.91,0.00058904,120]
[321120819,1711900384246,-545.06,0.00058904,120]
[321120820,1711900384255,-500.0,0.00058904,120]
[321120821,1711900384265,-688.34,0.00058904,120]
[321120822,1711900384275,-1281.67,0.00058904,120]
[321120823,1711900384287,-310.69,0.00058904,120]
[321120824,1711900384299,-1988.35,0.00058904,120]
[321120825,1711900384308,-555.54,0.00058904,120]
[321120826,1711900384318,-4923.54,0.00058904,120]
[321120827,1711900384327,-500.0,0.00058904,120]
[321120828,1711900384338,-593.25,0.00058904,120]
[321120829,1711900384347,-500.0,0.00058904,120]
[321120830,1711900384359,-1037.57,0.00058904,120]
[321120831,1711900384368,-500.0,0.00058904,120]
[321120832,1711900384378,-1959.37,0.00058904,120]
[321120833,1711900384388,-500.0,0.00058904,120]
[321120834,1711900384397,-500.0,0.00058904,120]
[321120835,1711900384407,-507.1,0.00058904,120]
[321120836,1711900384417,-973.96,0.00058904,120]
[321120837,1711900384426,-17432.97,0.00058904,120]
[321120838,1711900384435,-575.53,0.00058904,120]
[321120839,1711900384445,-836.36,0.00058904,120]
[321120840,1711900384454,-664.02,0.00058904,120]
[321120841,1711900384464,-4982.73,0.00058904,120]
[321120842,1711900384475,-1206.53,0.00058904,120]
[321120843,1711900384485,-2111.34,0.00058904,120]
[321120844,1711900384495,-561.13,0.00058904,120]
[321120845,1711900384504,-535.14,0.00058904,120]
[321120846,1711900384514,-35203.05,0.00058904,120]
[321120847,1711900384523,-500.0,0.00058904,120]
[321120848,1711900384535,-500.0,0.00058904,120]
[321120849,1711900384545,-20306.49,0.00058904,120]
[321120850,1711900384555,-500.0,0.00058904,120]
[321120851,1711900384564,-2426.71,0.00058904,120]
[321120852,1711900384573,-3158.99,0.00058904,120]
[321120853,1711900384583,-500.0,0.00058904,120]
[321120854,1711900384593,-500.0,0.00058904,120]
[321120855,1711900384604,-6583.66,0.00058904,120]
[321120856,1711900384613,-550.6,0.00058904,120]
[321120857,1711900384622,-4743.47,0.00058904,120]
[321120858,1711900384631,-649.91,0.00058904,120]
[321120859,1711900384640,-594.96,0.00058904,120]
[321120860,1711900384650,-1008.94,0.00058904,120]
[321120861,1711900384659,-1501.81,0.00058904,120]
[321120862,1711900384668,-7272.15,0.00058904,120]
[321120863,1711900384678,-500.0,0.00058904,120]
[321120864,1711900384687,-500.0,0.00058904,120]
[321120865,1711900384697,-1951.74,0.00058904,120]
[321120866,1711900384706,-500.0,0.00058904,120]
[321120867,1711900384716,-1708.51,0.00058904,120]
[321120868,1711900384725,-2213.16,0.00058904,120]
[321120869,1711900384735,-516.3,0.00058904,120]
[321120870,1711900384744,-706.06,0.00058904,120]
[321120871,1711900384754,-500.0,0.00058904,120]
[321120872,1711900384763,-500.0,0.00058904,120]
[321120873,1711900384772,-500.0,0.00058904,120]
[321120874,1711900384782,-500.0,0.00058904,120]
[321120875,1711900384792,-4238.83,0.00058904,120]
[321120876,1711900384801,-1070.8,0.00058904,120]
[321120877,1711900384811,-1153.73,0.00058904,120]
[321120878,1711900384820,-506.91,0.00058904,120]
[321120879,1711900384829,-11263.13,0.00058904,120]
[321120880,1711900384839,-500.0,0.00058904,120]
[321120881,1711900384850,-6135.58,0.00058904,120]
[321120882,1711900384859,-1063.3,0.00058904,120]
[321120883,1711900384869,-500.0,0.00058904,120]
[321120884,1711900384879,-1083.6,0.00058904,120]
[321120885,1711900384888,-1674.93,0.00058904,120]
[321120886,1711900384898,-500.0,0.00058904,120]
[321120887,1711900384907,-547.37,0.00058904,120]
[321120888,1711900384917,-1968.84,0.00058904,120]
[321120889,1711900384927,-3729.06,0.00058904,120]
[321120890,1711900384936,-4646.47,0.00058904,120]
[321120891,1711900384946,-2179.05,0.00058904,120]
[321120892,1711900384955,-16968.39,0.00058904,120]
[321120893,1711900384965,-29017.57,0.00058904,120]
[321120894,1711900384974,-551.57,0.00058904,120]
[321120895,1711900384984,-584.14,0.00058904,120]
[321120896,1711900384994,-890.16,0.00058904,120]
[321120897,1711900385004,-3354.8,0.00058904,120]
[321120898,1711900385014,-911.19,0.00058904,120]
[321120899,1711900385023,-770.28,0.00058904,120]
[321120900,1711900385033,-500.0,0.00058904,120]
[321120901,1711900385043,-749.8,0.00058904,120]
[321120902,1711900385053,-1117.84,0.00058904,120]
[321120903,1711900385064,-1829.63,0.00058904,120]
[321120904,1711900385074,-500.0,0.00058904,120]
[321120905,1711900385208,-3744.87,0.00058904,120]
[321120906,1711900385219,-500.0,0.00058904,120]
[321120907,1711900385229,-542.88,0.00058904,120]
[321120908,1711900385239,-1553.34,0.00058904,120]
[321120909,1711900385249,-500.0,0.00058904,120]
[321120910,1711900385259,-1915.68,0.00058904,120]
[321120911,1711900385270,-500.0,0.00058904,120]
[321120912,1711900385281,-584.91,0.00058904,120]
[321120913,1711900385292,-882.75,0.00058904,120]
[321120914,1711900385305,-1875.4,0.00058904,120]
[321120915,1711900385314,-500.0,0.00058904,120]
[321120916,1711900385325,-733.42,0.00058904,120]
[321120917,1711900385334,-784.97,0.00058904,120]
[321120918,1711900385345,-2559.61,0.00058904,120]
[321120919,1711900385357,-500.0,0.00058904,120]
[321120920,1711900385367,-4029.59,0.00058904,120]
[321120921,1711900385381,-1741.29,0.00058904,120]
[321120922,1711900385391,-500.0,0.00058904,120]
[321120923,1711900385401,-8811.85,0.00058904,120]
[321120924,1711900385411,-612.97,0.00058904,120]
[321120925,1711900385421,-7506.96,0.00058904,21]
[321120926,1711900385430,-2797.36,0.00058904,120]
[321120927,1711900385440,-1677.22,0.00058904,120]
[321120928,1711900385450,-1296.66,0.00058904,120]
[321120929,1711900385459,-500.0,0.00058904,120]
[321120930,1711900385469,-966.37,0.00058904,120]
[321120931,1711900385479,-500.0,0.00058904,120]
[321120932,1711900385489,-12461.24,0.00058904,120]
[321120933,1711900385498,-3203.08,0.00058904,120]
[321120934,1711900385508,-1043.52,0.00058904,120]
[321120935,1711900385517,-4560.05,0.00058904,120]
[321120936,1711900385527,-1828.48,0.00058904,120]
[321120937,1711900385537,-868.97,0.00058904,120]
[321120938,1711900385546,-1209.33,0.00058904,120]
[321120939,1711900385556,-596.22,0.00058904,120]
[321120940,1711900385566,-500.0,0.00058904,120]
[321120941,1711900385576,-609.97,0.00058904,120]
[321120942,1711900385586,-8356.87,0.00058904,120]
[321120943,1711900385596,-500.0,0.00058904,120]
[321120944,1711900385607,-1782.7,0.00058904,120]
[321120945,1711900385617,-500.0,0.00058904,120]
[321120946,1711900385627,-525.13,0.00058904,120]
[321120947,1711900385636,-1415.86,0.00058904,120]
[321120948,1711900385646,-2311.2,0.00058904,120]
[321120949,1711900385657,-1616.02,0.00058904,120]
[321120950,1711900385667,-12648.79,0.00058904,120]
[321120951,1711900385678,-2232.12,0.00058904,120]
[321120952,1711900385689,-1508.33,0.00058904,120]
[321120953,1711900385699,-500.0,0.00058904,120]
[321120954,1711900385709,-500.0,0.00058904,120]
[321120955,1711900385719,-500.0,0.00058904,120]
[321120956,1711900385729,-682.15,0.00058904,120]
[321120957,1711900385739,-500.0,0.00058904,120]
[321120958,1711900385749,-3149.36,0.00058904,120]
[321120959,1711900385758,-2930.26,0.00058904,120]
[321120960,1711900385769,-696.26,0.00058904,120]
[321120961,1711900385779,-500.0,0.00058904,120]
[321120962,1711900385789,-1065.68,0.00058904,120]
[321120963,1711900385800,-515.16,0.00058904,120]
[321120964,1711900385810,-1509.76,0.00058904,120]
[321120965,1711900385820,-500.0,0.00058904,120]
[321120966,1711900385830,-4982.8,0.00058904,120]
[321120967,1711900385841,-717.55,0.00058904,120]
[321120968,1711900385851,-2406.23,0.00058904,120]
[321120969,1711900385860,-5346.73,0.00058904,120]
[321120970,1711900385870,-688.17,0.00058904,120]
[321120971,1711900385880,-551.95,0.00058904,120]
[321120972,1711900385890,-3295.3,0.00058904,120]
[321120973,1711900385900,-716.5,0.00058904,120]
[321120974,1711900385910,-752.11,0.00058904,120]
[321120975,1711900385920,-500.0,0.00058904,120]
[321120976,1711900385930,-1648.61,0.00058904,120]
[321120977,1711900385940,-694.07,0.00058904,120]
[321120978,1711900385950,-883.93,0.00058904,120]
[321120979,1711900385959,-615.79,0.00058904,120]
[321120980,1711900385971,-500.0,0.00058904,120]
[321120981,1711900385981,-3973.68,0.00058904,120]
[321120982,1711900385991,-1150.28,0.00058904,120]
[321120983,1711900386000,-2159.97,0.00058904,120]
[321120984,1711900386010,-1225.53,0.00058904,120]
[321120985,1711900386020,-1646.9,0.00058904,120]
[321120986,1711900386030,-526.28,0.00058904,120]
[321120987,1711900386040,-994.44,0.00058904,120]
[321120988,1711900386050,-1115.67,0.00058904,120]
[321120989,1711900386060,-386.1104538,0.00058904,120]
[321120990,1711900386070,-4641.87,0.00058904,120]
[321120991,1711900386080,-8787.96,0.00058904,120]
[321120992,1711900386090,-484.59009227,0.00058904,120]
[321120993,1711900386101,-500.0,0.00058904,120]
[321120994,1711900386113,-500.0,0.00058904,120]
[321120995,1711900386122,-1194.34,0.00058904,120]
[321120996,1711900386131,-500.0,0.00058904,120]
[321120997,1711900386140,-500.0,0.00058904,120]
[321120998,1711900386149,-752.64,0.00058904,120]
[321120999,1711900386159,-3930.82,0.00058904,120]
[321121000,1711900386168,-1715.44,0.00058904,120]
[321121001,1711900386178,-7337.25,0.00058904,120]
[321121002,1711900386188,-500.0,0.00058904,120]
[321121003,1711900386198,-1001.76,0.00058904,120]
[321121004,1711900386207,-1183.78,0.00058904,120]
[321121005,1711900386217,-787.48,0.00058904,120]
[321121006,1711900386227,-939.48,0.00058904,120]
[321121007,1711900386237,-596.63,0.00058904,120]
[321121008,1711900386247,-602.91,0.00058904,120]
[321121009,1711900386257,-500.0,0.00058904,120]
[321121010,1711900386268,-2310.25,0.00058904,120]
[321121011,1711900386279,-1425.94,0.00058904,120]
[321121012,1711900386290,-1026.37,0.00058904,120]
[321121013,1711900386305,-6224.16,0.00058904,120]
[321121014,1711900386314,-520.6,0.00058904,120]
[321121015,1711900386324,-1299.9,0.00058904,120]
[321121016,1711900386334,-1747.53,0.00058904,120]
[321121017,1711900386344,-6493.36,0.00058904,120]
[321121018,1711900386355,-500.0,0.00058904,120]
[321121019,1711900386365,-569.5,0.00058904,120]
[321121020,1711900386376,-500.0,0.00058904,120]
[321121021,1711900386386,-703.93,0.00058904,120]
[321121022,1711900386396,-534.81,0.00058904,120]
[321121023,1711900386405,-670.0,0.00058904,120]
[321121024,1711900386415,-1379.27,0.00058904,120]
[321121025,1711900386426,-848.97,0.00058948,2]
[321121026,1711900386435,-158.61463628,0.00058986,120]
[321121027,1711900386446,-1000.0,0.00059,120]
[321121028,1711900386468,-7305.15154163,0.00059,120]
[321121029,1711900386481,-601.5194185,0.00059,120]
[321121030,1711900386493,-1000.0,0.00059,3]
[321121031,1711900386505,-200.0,0.00059051,120]
[321121032,1711900386516,-1239.43,0.00059178,120]
[321121033,1711900386528,-664.59,0.00059178,2]
[321121034,1711900386539,-500.0,0.00059178,120]
[321121035,1711900386550,-527.64,0.00059178,120]
[321121036,1711900386561,-500.0,0.00059178,120]
[321121037,1711900386571,-500.0,0.00059178,120]
[321121038,1711900386582,-595.84995984,0.00059178,120]
[321121039,1711900386592,-500.0,0.00059178,120]
[321121040,1711900386602,-500.0,0.00059178,120]
[321121041,1711900386613,-500.0,0.00059178,120]
[321121042,1711900386623,-495.92,0.00059178,120]
[321121043,1711900386634,-500.0,0.00059178,120]
[321121044,1711900386644,-500.0,0.00059178,120]
[321121045,1711900386654,-500.0,0.00059178,120]
[321121046,1711900386665,-512.02400989,0.00059178,120]
[321121047,1711900386676,-1476.31,0.00059178,120]
[321121048,1711900386686,-500.0,0.00059178,120]
[321121049,1711900386697,-151.0,0.00059178,120]
[321121050,1711900386708,-500.0,0.00059178,120]
[321121051,1711900386719,-151.0,0.00059178,120]
[321121052,1711900386730,-536.73,0.00059178,120]
[321121053,1711900386740,-794.23,0.00059178,120]
[321121054,1711900386751,-500.0,0.00059178,120]
[321121055,1711900386762,-500.0,0.00059178,120]
[321121056,1711900386772,-500.0,0.00059178,120]
[321121057,1711900386783,-726.96,0.00059178,120]
[321121058,1711900386794,-500.0,0.00059178,50]
[321121059,1711900386805,-500.0,0.00059178,120]
[321121060,1711900386815,-500.0,0.00059178,120]
[321121061,1711900386827,-500.0,0.00059178,120]
[321121062,1711900386838,-753.06,0.00059178,120]
[321121063,1711900386849,-741.95,0.00059178,120]
[321121064,1711900386860,-184.4323775,0.00059178,120]
[321121065,1711900386871,-500.0,0.00059178,120]
[321121066,1711900386882,-394.08,0.00059178,120]
[321121067,1711900386894,-500.0,0.00059178,120]
[321121068,1711900386904,-500.0,0.00059178,120]
[321121069,1711900386915,-500.0,0.00059178,120]
[321121070,1711900386925,-500.0,0.00059178,120]
[321121071,1711900386935,-796.42,0.00059178,120]
[321121072,1711900386945,-887.89,0.00059178,120]
[321121073,1711900386955,-556.88,0.00059178,120]
[321121074,1711900386965,-646.48,0.00059178,120]
[321121075,1711900386976,-500.0,0.00059178,120]
[321121076,1711900386987,-510.99,0.00059178,120]
[321121077,1711900386998,-849.94,0.00059178,120]
[321121078,1711900387008,-500.0,0.00059178,120]
[321121079,1711900387018,-500.0,0.00059178,120]
[321121080,1711900387028,-799.12,0.00059178,120]
[321121081,1711900387038,-500.0,0.00059178,120]
[321121082,1711900387049,-612.0,0.00059178,120]
[321121083,1711900387456,-500.0,0.00059178,120]
[321121084,1711900387467,-500.0,0.00059178,120]
[321121085,1711900387477,-500.0,0.00059178,120]
[321121086,1711900387487,-500.0,0.00059178,120]
[321121087,1711900387498,-883.96,0.00059178,120]
[321121088,1711900387507,-815.7,0.00059178,120]
[321121089,1711900387516,-500.0,0.00059178,120]
[321121090,1711900387526,-804.07,0.00059178,120]
[321121091,1711900387535,-635.28,0.00059178,120]
[321121092,1711900387544,-959.19,0.00059178,120]
[321121093,1711900387554,-683.74,0.00059178,120]
[321121094,1711900387563,-1061.5,0.00059178,120]
[321121095,1711900387572,-736.85,0.00059178,120]
[321121096,1711900387582,-500.0,0.00059178,120]
[321121097,1711900387592,-500.0,0.00059178,120]
[321121098,1711900387601,-500.0,0.00059178,120]
[321121099,1711900387611,-500.0,0.00059178,120]
[321121100,1711900387620,-592.16,0.00059178,120]
[321121101,1711900387630,-500.0,0.00059178,120]
[321121102,1711900387639,-500.0,0.00059178,120]
[321121103,1711900387649,-571.87,0.00059178,120]
[321121104,1711900387659,-500.0,0.00059178,16]
[321121105,1711900387668,-781.99,0.00059178,120]
[321121106,1711900387678,-828.46,0.00059178,120]
[321121107,1711900387688,-500.0,0.00059178,120]
[321121108,1711900387697,-500.0,0.00059178,120]
[321121109,1711900387707,-500.0,0.00059178,120]
[321121110,1711900387717,-519.19,0.00059178,120]
[321121111,1711900387727,-680.37,0.00059178,120]
[321121112,1711900387736,-500.0,0.00059178,120]
[321121113,1711900387745,-735.71,0.00059178,120]
[321121114,1711900387755,-500.0,0.00059178,120]
[321121115,1711900387765,-648.33,0.00059178,120]
[321121116,1711900387775,-500.0,0.00059178,120]
[321121117,1711900387784,-680.7,0.00059178,120]
[321121118,1711900387795,-1067.63,0.00059178,120]
[321121119,1711900387805,-617.46,0.00059178,120]
[321121120,1711900387815,-500.0,0.00059178,120]
[321121121,1711900387824,-500.0,0.00059178,120]
[321121122,1711900387834,-615.17,0.00059178,120]
[321121123,1711900387844,-753.46,0.00059178,120]
[321121124,1711900387855,-671.0,0.00059178,120]
[321121125,1711900387864,-742.98,0.00059178,120]
[321121126,1711900387874,-579.39,0.00059178,120]
[321121127,1711900387883,-500.0,0.00059178,120]
[321121128,1711900387893,-169.624388,0.00059178,120]
[321121129,1711900387903,-759.51,0.00059178,120]
[321121130,1711900387912,-500.0,0.00059178,120]
[321121131,1711900387922,-169.624388,0.00059178,120]
[321121132,1711900387931,-307.543145,0.00059178,120]
[321121133,1711900387941,-307.543145,0.00059178,120]
[321121134,1711900387950,-500.0,0.00059178,120]
[321121135,1711900387961,-730.83,0.00059178,30]
[321121136,1711900387971,-562.36,0.00059178,120]
[321121137,1711900387980,-151.0,0.00059178,120]
[321121138,1711900387990,-228.445746,0.00059178,120]
[321121139,1711900388000,-591.57,0.00059178,120]
[321121140,1711900388011,-754.29,0.00059178,120]
[321121141,1711900388020,-544.56,0.00059178,120]
[321121142,1711900388030,-500.0,0.00059178,120]
[321121143,1711900388040,-563.24,0.00059178,120]
[321121144,1711900388050,-500.0,0.00059178,120]
[321121145,1711900388060,-384.45630268,0.00059178,120]
[321121146,1711900388070,-500.0,0.00059178,120]
[321121147,1711900388079,-662.41,0.00059178,120]
[321121148,1711900388088,-995.44,0.00059178,120]
[321121149,1711900388098,-500.0,0.00059178,120]
[321121150,1711900388110,-500.0,0.00059178,120]
[321121151,1711900388119,-500.0,0.00059178,120]
[321121152,1711900388129,-629.64,0.00059178,120]
[321121153,1711900388140,-500.0,0.00059178,120]
[321121154,1711900388150,-531.25,0.00059178,120]
[321121155,1711900388160,-543.59,0.00059178,120]
[321121156,1711900388170,-500.0,0.00059178,120]
[321121157,1711900388180,-761.88,0.00059178,120]
[321121158,1711900388189,-711.25,0.00059178,120]
[321121159,1711900388198,-646.54,0.00059178,120]
[321121160,1711900388208,-1048.22,0.00059178,120]
[321121161,1711900388217,-500.0,0.00059178,120]
[321121162,1711900388227,-844.59,0.00059178,120]
[321121163,1711900388236,-519.79,0.00059178,120]
[321121164,1711900388246,-729.88,0.00059178,120]
[321121165,1711900388255,-539.07,0.00059178,120]
[321121166,1711900388265,-915.41,0.00059178,120]
[321121167,1711900388274,-771.12,0.00059178,120]
[321121168,1711900388284,-500.0,0.00059178,120]
[321121169,1711900388295,-544.62,0.00059178,120]
[321121170,1711900388307,-618.81,0.00059178,120]
[321121171,1711900388316,-560.35,0.00059178,120]
[321121172,1711900388326,-500.0,0.00059178,120]
[321121173,1711900388337,-500.0,0.00059178,120]
[321121174,1711900388346,-500.0,0.00059178,120]
[321121175,1711900388356,-860.0,0.00059178,120]
[321121176,1711900388366,-881.22,0.00059178,120]
[321121177,1711900388377,-500.0,0.00059178,120]
[321121178,1711900388388,-500.0,0.00059178,120]
[321121179,1711900388397,-644.32,0.00059178,120]
[321121180,1711900388406,-500.0,0.00059178,120]
[321121181,1711900388416,-500.0,0.00059178,120]
[321121182,1711900388426,-500.0,0.00059178,120]
[321121183,1711900388436,-1276.69,0.00059178,120]
[321121184,1711900388446,-374.38797488,0.00059178,120]
[321121185,1711900388456,-500.0,0.00059178,120]
[321121186,1711900388466,-481.02592448,0.00059178,120]
[321121187,1711900388476,-259.83,0.00059178,120]
[321121188,1711900388485,-554.91,0.00059178,120]
[321121189,1711900388494,-545.06,0.00059178,120]
[321121190,1711900388505,-500.0,0.00059178,120]
[321121191,1711900388514,-688.34,0.00059178,120]
[321121192,1711900388524,-1281.67,0.00059178,120]
[321121193,1711900388533,-1988.35,0.00059178,120]
[321121194,1711900388542,-555.54,0.00059178,120]
[321121195,1711900388551,-500.0,0.00059178,120]
[321121196,1711900388560,-4923.54,0.00059178,120]
[321121197,1711900388569,-593.25,0.00059178,120]
[321121198,1711900388578,-500.0,0.00059178,120]
[321121199,1711900388588,-1037.57,0.00059178,120]
[321121200,1711900388597,-500.0,0.00059178,120]
[321121201,1711900388606,-1959.37,0.00059178,120]
[321121202,1711900388616,-500.0,0.00059178,120]
[321121203,1711900388624,-507.1,0.00059178,120]
[321121204,1711900388634,-973.96,0.00059178,120]
[321121205,1711900388643,-17432.97,0.00059178,120]
[321121206,1711900388652,-575.53,0.00059178,120]
[321121207,1711900388661,-836.36,0.00059178,120]
[321121208,1711900388670,-664.02,0.00059178,120]
[321121209,1711900388681,-4982.73,0.00059178,120]
[321121210,1711900388690,-1206.53,0.00059178,120]
[321121211,1711900388699,-2111.34,0.00059178,120]
[321121212,1711900388709,-561.13,0.00059178,120]
[321121213,1711900388719,-535.14,0.00059178,120]
[321121214,1711900388728,-35203.05,0.00059178,120]
[321121215,1711900388737,-500.0,0.00059178,120]
[321121216,1711900388747,-500.0,0.00059178,120]
[321121217,1711900388757,-20306.49,0.00059178,120]
[321121218,1711900388766,-403.58301258,0.00059178,120]
[321121219,1711900388775,-2426.71,0.00059178,120]
[321121220,1711900388784,-3158.99,0.00059178,120]